bitfinex/quotes_ETHUSD_20250602
["timestamp","ask_amount","ask_price","bid_price","bid_amount"]
[1748905366922,0.02,2586.9,2586.8,21.66820669]
[1748905367480,0.02,2586.9,2586.8,4.02390669]
[1748905368101,0.02,2586.9,2586.8,8.10756297]
[1748905368422,0.02,2586.9,2586.8,8.06890669]
[1748905369922,0.02,2586.9,2586.8,4.02390669]
[1748905370121,0.02,2586.9,2586.8,8.07090669]
[1748905370623,0.8033,2586.9,2586.8,4.02390669]
[1748905370804,0.8033,2586.9,2586.8,8.07090669]
[1748905371422,0.8033,2586.9,2586.8,4.02390669]
[1748905372629,0.02,2586.9,2586.8,4.02390669]
[1748905373906,0.02,2586.9,2586.8,4.06256159]
[1748905374736,0.02,2586.9,2586.8,4.02390669]
[1748905376406,0.8008,2586.9,2586.8,8.07290669]
[1748905377319,0.8008,2586.9,2586.8,4.02390669]
[1748905381468,1.8838,2586.9,2586.8,4.02390669]
[1748905381744,1.103,2586.9,2586.8,8.07490669]
[1748905381906,0.02,2586.9,2586.8,8.07490669]
[1748905382106,0.02,2586.9,2586.8,8.86330669]
[1748905382343,0.02,2586.9,2586.8,16.86330669]
[1748905382553,0.02,2586.9,2586.8,17.41330669]
[1748905384018,0.02,2586.9,2586.8,16.86330669]
[1748905384923,0.02,2586.9,2586.8,17.41330669]
[1748905385662,0.02,2586.9,2586.8,17.41230669]
[1748905387322,0.02,2586.9,2586.8,18.02021677]
[1748905387523,0.02,2586.9,2586.8,18.01982495]
[1748905387740,0.02,2586.9,2586.8,19.10882495]
[1748905387932,0.02,2586.9,2586.8,18.50130669]
[1748905389661,0.02,2587.9,2587.8,3.86428626]
[1748905389828,0.02,2587.9,2587.8,7.92228626]
[1748905390038,0.02,2587.9,2587.8,7.96092287]
[1748905390373,0.02,2587.9,2587.8,7.92228626]
[1748905390675,0.02,2587.9,2587.8,16.47228626]
[1748905391137,0.02,2587.9,2587.8,15.92228626]
[1748905391471,0.02,2587.9,2587.8,16.47228626]
[1748905391872,0.02,2587.9,2587.8,15.92228626]
[1748905392076,0.02,2587.9,2587.8,11.86428626]
[1748905392277,0.02,2587.9,2587.8,3.86428626]
[1748905392450,0.29579935,2588.0,2587.9,3.86413694]
[1748905392852,1.10609935,2588.0,2587.9,3.86413694]
[1748905393153,1.10609935,2588.0,2587.8,3.86428626]
[1748905393154,1.68717308,2588.0,2587.7,3.86440365]
[1748905393364,0.8255,2587.9,2587.8,3.86428626]
[1748905396747,1.18770681,2587.9,2587.8,3.86428626]
[1748905396971,0.8255,2587.9,2587.8,3.86428626]
[1748905398650,1.1877065,2587.9,2587.8,3.86428626]
[1748905398847,0.8255,2587.9,2587.8,3.86428626]
[1748905399147,1.62909226,2587.9,2587.8,3.86428626]
[1748905399979,2.71209226,2587.9,2587.8,3.86428626]
[1748905401602,0.80359226,2587.9,2586.2,0.57931975]
[1748905401806,0.7912,2587.8,2587.7,3.86443559]
[1748905402001,2.58002149,2587.8,2587.7,3.86443559]
[1748905402778,0.8096,2587.7,2587.4,3.86476194]
[1748905402991,0.8096,2587.4,2587.0,3.86548125]
[1748905403306,0.8096,2587.3,2587.2,3.86518243]
[1748905403469,2.36013133,2587.3,2587.2,3.86518243]
[1748905403667,0.8096,2587.2,2586.9,3.86553854]
[1748905403980,0.8096,2586.9,2586.8,3.8657019]
[1748905404176,2.75143133,2586.9,2586.8,3.8657019]
[1748905404366,1.8926,2586.9,2586.8,3.8657019]
[1748905405901,0.36225914,2587.6,2587.2,3.86518243]
[1748905406115,1.083,2587.5,2587.4,3.86488366]
[1748905408079,1.8885,2587.5,2587.4,3.86488366]
[1748905408519,2.11357591,2587.5,2587.4,3.86488366]
[1748905410484,1.03057591,2587.5,2587.4,3.86488366]
[1748905410819,1.083,2587.5,2587.4,3.86488366]
[1748905411025,0.36225914,2587.6,2587.5,3.86473429]
[1748905412638,0.36225914,2587.6,2587.5,7.92173429]
[1748905412845,1.15315914,2587.6,2586.5,3.86609594]
[1748905413009,0.7909,2587.4,2586.8,3.86568544]
[1748905413214,0.7909,2587.4,2587.3,3.86503304]
[1748905413521,8.7909,2587.4,2586.7,3.86578635]
[1748905413702,0.7909,2587.4,2587.3,3.86503304]
[1748905413900,1.088,2587.4,2587.3,3.86503304]
[1748905414896,0.36225914,2587.6,2587.5,3.86473429]
[1748905415095,0.36225914,2587.6,2587.5,7.93073429]
[1748905422041,0.36225914,2587.6,2587.5,8.74103429]
[1748905424904,0.36225914,2587.6,2587.5,7.93073429]
[1748905426461,1.15115914,2587.6,2587.5,3.86473429]
[1748905426609,0.36225914,2587.6,2587.5,4.66578262]
[1748905427207,0.36225914,2587.6,2587.5,12.66578262]
[1748905427407,0.36225914,2587.6,2587.5,12.62713429]
[1748905431352,0.36225914,2587.6,2587.5,13.01048853]
[1748905432054,0.36225914,2587.6,2587.5,13.56048853]
[1748905434720,0.36225914,2587.6,2587.5,20.25620187]
[1748905435215,0.36225914,2587.6,2587.5,21.34420187]
[1748905436968,0.36225914,2587.6,2587.5,17.61148853]
[1748905437972,0.36225914,2587.6,2587.5,24.30720187]
[1748905441652,0.36225914,2587.6,2587.5,13.56048853]
[1748905441855,0.36225914,2587.6,2587.5,13.01048853]
[1748905442091,0.36225914,2587.6,2587.5,11.86473429]
[1748905442243,0.36225914,2587.6,2587.5,15.91673429]
[1748905442582,0.36225914,2587.6,2587.5,3.86473429]
[1748905442836,5.01106891,2589.4,2588.3,8.0]
[1748905443088,1.22960697,2591.5,2591.2,3.8592158]
[1748905443246,1.22960697,2592.1,2591.8,3.8583224]
[1748905443569,0.02,2592.9,2591.8,9.1283224]
[1748905443768,0.02,2592.9,2591.8,4.24234513]
[1748905444087,0.02,2592.9,2591.8,9.06392169]
[1748905444289,0.02,2592.9,2592.6,3.85713183]
[1748905444481,0.02,2592.9,2592.6,9.00284803]
[1748905444652,0.02,2592.9,2592.6,8.64613183]
[1748905444855,8.99107777,2594.9,2593.1,11.8563881]
[1748905445053,8.21987777,2594.9,2593.1,24.2773904]
[1748905445281,8.21987777,2594.9,2593.8,3.85534736]
[1748905445449,1.61,2594.4,2593.8,8.73534736]
[1748905445664,2.3812,2594.4,2593.8,4.57084732]
[1748905446667,2.3812,2594.4,2593.8,4.92803167]
[1748905446873,2.3812,2594.4,2593.8,4.57084732]
[1748905447058,10.3812,2594.4,2593.8,4.57084732]
[1748905447259,10.3812,2594.4,2593.8,4.92806007]
[1748905447459,10.3812,2594.4,2593.8,4.57084732]
[1748905447655,10.3812,2594.4,2593.8,9.50184732]
[1748905447980,10.3812,2594.4,2593.8,4.57084732]
[1748905448359,10.3812,2594.4,2593.8,4.60939609]
[1748905448595,10.3812,2594.4,2593.8,4.9664462]
[1748905448768,2.3812,2594.4,2593.8,4.96606388]
[1748905448969,2.3812,2594.4,2593.8,9.88505929]
[1748905449174,2.3812,2594.4,2593.8,9.84651511]
[1748905449374,1.61,2594.4,2593.8,25.34990686]
[1748905449579,1.61,2594.4,2594.3,3.85460432]
[1748905449811,2.605,2594.4,2594.3,4.21127211]
[1748905450018,8.21987777,2594.9,2594.8,3.85386156]
[1748905450181,8.21987777,2594.9,2594.8,9.92622935]
[1748905450507,7.9310046,2594.9,2594.8,25.7801623]
[1748905450689,7.9310046,2594.9,2594.8,26.13658296]
[1748905451007,7.9310046,2594.9,2594.8,25.7801623]
[1748905451208,7.0067044,2594.9,2594.8,25.7801623]
[1748905451410,7.0067044,2594.9,2594.8,18.83430145]
[1748905452321,5.62,2595.9,2595.8,3.85237691]
[1748905452472,5.62,2595.9,2595.8,12.75663984]
[1748905452671,5.62,2595.9,2595.8,17.67863984]
[1748905452895,5.62,2595.9,2595.8,12.20663984]
[1748905453102,5.62,2595.9,2595.8,4.42030201]
[1748905453372,6.182,2595.9,2595.8,3.85237691]
[1748905453568,6.182,2595.9,2595.8,8.77537691]
[1748905453832,6.182,2595.9,2595.8,9.13167516]
[1748905453975,6.182,2595.9,2595.8,8.77537691]
[1748905454167,5.62,2595.9,2595.8,8.77537691]
[1748905454478,5.62,2595.9,2595.8,18.03256262]
[1748905454686,5.62,2595.9,2595.8,17.67647022]
[1748905454884,5.62,2595.9,2595.8,12.75347022]
[1748905455084,5.62,2595.9,2595.8,17.67047022]
[1748905455285,5.62,2595.9,2595.8,17.67022032]
[1748905455507,5.62,2595.9,2595.8,18.02405508]
[1748905455725,5.62,2595.9,2595.8,17.32691767]
[1748905455924,5.62,2595.9,2595.8,18.09537252]
[1748905456083,5.62,2595.9,2595.8,18.80121004]
[1748905456283,5.62,2595.9,2595.8,17.87637605]
[1748905456829,0.00452176,2596.6,2596.5,12.40133834]
[1748905457027,0.02,2596.9,2596.8,3.8508934]
[1748905457238,0.02,2596.9,2596.8,12.45276787]
[1748905457375,0.02,2596.9,2596.8,18.25456728]
[1748905457728,0.02,2596.9,2596.8,13.97258357]
[1748905457889,0.02,2596.9,2596.8,5.97258357]
[1748905458083,0.02,2596.9,2596.8,6.32768681]
[1748905458288,0.94132222,2596.9,2596.8,4.66619328]
[1748905458499,0.02,2596.9,2596.8,4.62768681]
[1748905458713,0.02,2596.9,2596.8,9.55068681]
[1748905459318,0.02,2596.9,2596.8,4.98316573]
[1748905459516,0.8531,2596.9,2596.8,1.10619233]
[1748905459674,1.77442222,2596.9,2596.8,0.89757535]
[1748905459869,0.94132222,2596.9,2596.8,4.74846875]
[1748905460101,0.02,2596.9,2596.8,10.38283061]
[1748905460324,0.02,2596.9,2596.8,5.45983061]
[1748905460511,0.02,2596.9,2596.8,0.89757535]
[1748905460715,0.02,2596.9,2596.8,5.81857535]
[1748905461413,0.02,2596.9,2596.8,0.89757535]
[1748905461648,0.8006,2596.8,2595.5,3.85272794]
[1748905461855,8.8006,2596.3,2594.9,3.85371305]
[1748905462140,1.607,2596.2,2595.7,3.85239974]
[1748905462340,0.8006,2596.1,2595.7,3.85238506]
[1748905462501,1.84136,2596.1,2595.6,3.85265089]
[1748905462702,1.84136,2596.1,2595.0,3.85356454]
[1748905462904,0.8006,2595.8,2595.1,4.17507186]
[1748905463151,0.46528403,2595.7,2595.2,0.32166407]
[1748905463302,0.8006,2595.8,2594.9,4.905]
[1748905463504,4.65298897,2595.8,2595.2,3.85316979]
[1748905463719,0.4652989,2595.7,2594.9,4.905]
[1748905463902,0.7997,2596.4,2596.3,3.85163501]
[1748905464219,0.8197,2596.9,2596.8,3.8508934]
[1748905464400,0.02,2596.9,2596.8,8.7668934]
[1748905465144,0.02,2596.9,2596.8,3.8508934]
[1748905465314,0.02,2596.9,2596.8,8.80139487]
[1748905465530,0.02,2596.9,2596.8,8.7628934]
[1748905466353,0.02,2596.9,2596.8,9.66326926]
[1748905466716,0.02,2596.9,2596.8,17.66326926]
[1748905467124,0.02,2596.9,2596.8,18.24573718]
[1748905467532,0.02,2596.9,2596.8,17.66326926]
[1748905467734,0.02,2596.9,2596.8,14.45126926]
[1748905467944,0.02,2596.9,2596.8,19.93685211]
[1748905468143,0.02,2596.9,2596.8,14.48685211]
[1748905468469,0.02,2596.9,2596.8,19.73826926]
[1748905468635,0.02,2597.9,2597.0,4.40059684]
[1748905468819,0.02,2597.9,2597.0,4.7509727]
[1748905469021,0.02,2597.9,2597.0,9.6749727]
[1748905469241,0.02,2597.9,2597.0,4.2009727]
[1748905469565,0.02,2597.9,2597.0,9.1239727]
[1748905469727,9.19813445,2597.1,2597.0,4.2009727]
[1748905470057,9.19813445,2597.1,2597.0,4.20373634]
[1748905471233,8.31012223,2597.1,2597.0,3.85059684]
[1748905471537,8.31012223,2597.1,2597.0,4.20427106]
[1748905472731,8.31012223,2597.1,2597.0,0.9487874]
[1748905472935,0.8074,2596.9,2596.6,0.59511318]
[1748905473145,0.8074,2596.7,2596.1,0.59511318]
[1748905473426,0.8074,2596.4,2596.0,0.59511318]
[1748905473662,0.8074,2596.2,2595.9,4.44733713]
[1748905473869,0.24134,2596.1,2595.9,0.59511318]
[1748905474043,0.24134,2596.1,2596.0,4.4471933]
[1748905474044,1.84734,2596.1,2596.0,4.4471933]
[1748905474240,0.8074,2596.2,2596.1,3.85193174]
[1748905474449,0.8074,2596.2,2596.1,8.75693174]
[1748905475133,0.8074,2596.2,2596.1,3.85193174]
[1748905476125,0.8074,2596.2,2596.1,4.45135321]
[1748905476464,0.8074,2596.2,2596.1,3.85193174]
[1748905476677,0.8074,2596.2,2596.1,4.45200216]
[1748905477054,0.8074,2596.2,2596.1,4.45200318]
[1748905477574,0.8074,2596.2,2596.1,8.73693174]
[1748905477756,2.4354,2596.2,2596.1,8.73693174]
[1748905478133,2.4354,2596.2,2596.1,3.85193174]
[1748905478334,2.67894,2596.2,2596.1,3.85193174]
[1748905478530,1.29249116,2596.2,2596.0,4.882]
[1748905478784,1.04895116,2596.2,2596.1,3.85193174]
[1748905479444,8.83301222,2597.0,2596.1,3.85193174]
[1748905479445,0.83301222,2597.0,2596.1,3.85193174]
[1748905479654,1.628,2596.3,2596.2,3.85178337]
[1748905480819,1.628,2596.3,2596.1,3.8518178]
[1748905481139,1.628,2596.3,2595.3,0.03852037]
[1748905481428,1.628,2596.3,2596.2,3.85178337]
[1748905481644,2.4464,2596.3,2596.2,3.85178337]
[1748905481858,2.69104,2596.3,2596.2,3.85178337]
[1748905482451,2.69104,2596.3,2596.0,4.858]
[1748905482762,2.69104,2596.3,2596.1,3.85192175]
[1748905483259,1.628,2596.7,2596.1,0.03852182]
[1748905483422,1.628,2596.7,2596.6,3.85119001]
[1748905483802,2.4383,2596.7,2596.6,3.85119001]
[1748905484286,2.4383,2597.0,2596.9,3.85074511]
[1748905484556,8.31012223,2597.1,2597.0,3.85059684]
[1748905484918,7.48755503,2597.1,2597.0,3.88910065]
[1748905485119,7.48755503,2597.1,2597.0,4.64820065]
[1748905485425,7.48755503,2597.1,2597.0,4.60969684]
[1748905485923,7.48755503,2597.1,2597.0,8.69259684]
[1748905486135,8.23831053,2597.1,2597.0,8.69259684]
[1748905486944,7.48755503,2597.1,2597.0,8.69259684]
[1748905489522,7.48755503,2597.1,2597.0,3.85059684]
[1748905489730,7.48755503,2597.1,2596.6,1.7]
[1748905489731,8.24565503,2597.1,2596.6,1.7]
[1748905490038,8.24565503,2597.1,2596.7,3.85095604]
[1748905490242,1.21160686,2597.0,2596.6,8.67014841]
[1748905490445,5.06227185,2597.0,2596.5,3.85132043]
[1748905490607,0.7581,2596.9,2596.5,4.815]
[1748905490812,4.65011313,2596.7,2596.2,3.85177166]
[1748905491012,1.574,2596.6,2596.3,3.8516257]
[1748905491433,1.574,2596.5,2596.4,3.85148667]
[1748905491744,1.574,2596.5,2596.4,8.65948667]
[1748905491907,1.574,2596.5,2596.4,4.808]
[1748905492110,1.574,2596.5,2596.4,8.65948667]
[1748905492339,1.574,2596.5,2595.7,3.85242911]
[1748905492648,4.65055565,2596.4,2595.4,3.85292908]
[1748905492944,1.00758997,2596.3,2596.1,3.85190236]
[1748905493245,0.799,2596.4,2596.1,3.85193174]
[1748905493758,0.799,2596.4,2596.0,8.65504144]
[1748905493759,0.799,2596.4,2596.0,4.803]
[1748905493928,1.574,2596.6,2596.5,3.85133834]
[1748905494245,1.574,2596.6,2596.5,8.64733834]
[1748905494939,1.574,2596.6,2596.5,9.45253834]
[1748905495511,0.8023,2597.2,2597.0,4.68279684]
[1748905495512,0.44934926,2597.1,2597.0,4.68279684]
[1748905495708,0.29025729,2597.1,2597.0,12.68279684]
[1748905496105,0.29025729,2597.1,2597.0,17.53979684]
[1748905496308,0.29025729,2597.1,2597.0,4.68279684]
[1748905496505,0.29025729,2597.1,2597.0,9.53979684]
[1748905496710,0.29025729,2597.1,2597.0,8.70759684]
[1748905496917,0.29025729,2597.1,2597.0,5.55059684]
[1748905497141,0.29025729,2597.1,2597.0,10.40859684]
[1748905497515,0.29025729,2597.1,2597.0,10.40438829]
[1748905497745,0.29025729,2597.1,2597.0,5.54638829]
[1748905497920,0.29025729,2597.1,2597.0,10.40138829]
[1748905499377,0.29025729,2597.1,2597.0,1.7]
[1748905499378,0.32889597,2597.1,2597.0,1.7]
[1748905499577,0.32889597,2597.1,2597.0,6.542]
[1748905499749,0.32889597,2597.1,2595.8,3.85236133]
[1748905499750,0.32889597,2597.1,2596.6,3.85114852]
[1748905499953,0.8324,2597.0,2596.3,0.03850945]
[1748905500152,0.8324,2596.0,2595.2,0.16175639]
[1748905500355,1.61263868,2595.9,2595.2,0.16175639]
[1748905500562,1.81850387,2595.9,2595.8,3.85237691]
[1748905500754,0.03863868,2596.5,2596.4,3.85148667]
[1748905500964,0.8324,2596.8,2596.4,4.861]
[1748905501151,0.8324,2596.8,2596.7,3.8510417]
[1748905501753,1.574,2597.0,2596.9,3.85074511]
[1748905502057,1.574,2597.0,2596.9,4.861]
[1748905502247,1.574,2597.0,2595.7,11.85249891]
[1748905502248,1.8481596,2597.0,2595.7,11.85249891]
[1748905502473,1.8481596,2597.0,2595.6,3.85267375]
[1748905502474,0.8187,2596.8,2595.6,3.85267375]
[1748905502736,0.8187,2596.8,2595.9,3.85222851]
[1748905502962,0.8187,2596.8,2595.8,3.85237691]
[1748905502963,0.03863868,2596.7,2595.8,3.85237691]
[1748905503135,0.03863868,2596.7,2595.9,8.70915243]
[1748905503351,0.8187,2596.6,2595.8,1.7]
[1748905503550,3.85202625,2596.1,2595.8,1.7]
[1748905503754,2.81654131,2596.0,2595.6,8.70766985]
[1748905504087,2.81654131,2596.0,2595.7,3.80251406]
[1748905504257,2.81654131,2596.0,2595.7,8.70345426]
[1748905504457,2.81654131,2596.0,2595.7,4.851]
[1748905504785,2.77790263,2596.0,2595.8,3.85228454]
[1748905504985,2.77790263,2596.0,2595.6,8.6995742]
[1748905504986,2.77790263,2596.0,2595.7,3.85239638]
[1748905505159,0.27779026,2595.9,2595.7,3.80239638]
[1748905505968,0.8187,2596.0,2595.9,3.85222851]
[1748905506170,2.3927,2596.0,2595.9,3.85222851]
[1748905506573,2.3927,2596.0,2595.3,3.85311909]
[1748905506743,0.03863868,2595.9,2595.4,4.835]
[1748905506948,0.28177255,2595.9,2595.6,3.85266124]
[1748905507189,0.28177255,2595.9,2595.4,8.68794126]
[1748905507190,0.28177255,2595.9,2595.4,4.835]
[1748905507351,1.574,2595.8,2595.7,3.85238454]
[1748905507753,1.574,2595.8,2595.6,3.85259907]
[1748905507978,0.03863868,2595.7,2595.6,3.85259907]
[1748905508493,0.8207,2595.2,2595.1,0.02]
[1748905508672,1.71202201,2595.2,2595.1,0.02]
[1748905508847,0.8207,2595.2,2595.1,0.02]
[1748905509155,0.8207,2595.2,2595.1,3.87341605]
[1748905509363,1.574,2595.4,2595.3,3.85311909]
[1748905509998,1.574,2595.4,2595.3,4.864]
[1748905510362,0.7998,2595.3,2595.1,0.02]
[1748905510600,0.03863868,2595.2,2595.1,0.02]
[1748905510742,3.89190625,2595.2,2595.1,0.02]
[1748905510945,0.85573868,2595.2,2595.1,0.02]
[1748905511142,1.08440725,2595.2,2595.1,0.02]
[1748905511348,0.8171,2595.2,2595.1,3.87341605]
[1748905512474,0.8171,2595.2,2595.1,0.02]
[1748905513016,4.67036757,2595.2,2595.1,0.02]
[1748905513509,0.8171,2595.2,2595.1,0.02]
[1748905513692,4.67036757,2595.2,2595.1,0.02]
[1748905513890,1.83071226,2595.2,2595.1,0.02]
[1748905514090,5.68397983,2595.2,2595.1,0.02]
[1748905514479,14.23397983,2595.2,2595.1,0.02]
[1748905515376,18.05577983,2595.2,2595.1,0.02]
[1748905516866,13.11201305,2594.9,2594.8,0.35647696]
[1748905517209,15.99391469,2594.9,2594.8,0.35647696]
[1748905517420,20.20127106,2594.9,2594.8,0.23586882]
[1748905517571,25.02027106,2594.9,2594.8,0.23586882]
[1748905517972,5.16305291,2594.2,2594.1,0.02]
[1748905518201,14.77669159,2594.2,2594.1,0.02]
[1748905518407,17.43338485,2594.2,2594.1,0.02]
[1748905519114,7.48953194,2594.2,2594.1,0.02]
[1748905519432,6.40783868,2594.2,2594.1,0.02]
[1748905519639,2.3333,2594.2,2594.1,0.02]
[1748905519819,2.37193868,2594.2,2594.1,0.02]
[1748905520681,6.22669159,2594.2,2594.1,0.02]
[1748905520879,10.1119128,2594.2,2594.1,0.02]
[1748905521083,13.86137412,2594.2,2594.1,0.02]
[1748905521287,21.86137412,2594.2,2594.1,0.02]
[1748905521907,4.40519873,2593.9,2593.8,1.59300594]
[1748905522113,25.60853911,2593.9,2593.8,1.59300594]
[1748905522311,0.8017,2593.3,2593.1,0.37628896]
[1748905522542,5.46287807,2593.2,2593.1,0.37628896]
[1748905522701,1.60663868,2593.2,2593.1,0.37628896]
[1748905522895,1.568,2593.2,2593.1,4.23267706]
[1748905523207,5.46287807,2593.2,2593.1,0.37628896]
[1748905523406,1.60663868,2593.2,2593.1,0.37628896]
[1748905523808,0.8017,2593.3,2593.1,0.37628896]
[1748905523809,0.8017,2593.3,2593.1,4.23267706]
[1748905524059,0.7863,2593.7,2593.5,3.8557255]
[1748905524201,3.85623939,2593.2,2593.1,0.37628896]
[1748905524398,8.7863,2593.1,2591.8,4.8]
[1748905524612,0.03863868,2593.0,2592.3,3.85750638]
[1748905524835,8.0,2592.8,2592.4,3.857408]
[1748905525023,0.03863868,2592.7,2592.4,3.857408]
[1748905525404,0.03863868,2592.7,2592.1,4.816]
[1748905525729,3.85704926,2592.7,2592.2,8.64965331]
[1748905525931,0.03863868,2592.6,2592.2,8.64965331]
[1748905526221,0.03863868,2592.6,2592.2,3.85765331]
[1748905526392,0.82905386,2592.6,2592.1,0.02]
[1748905526591,0.82493868,2592.5,2592.1,3.87778412]
[1748905526797,0.7863,2592.5,2592.2,3.85767871]
[1748905527042,0.79041518,2592.6,2592.4,3.8574294]
[1748905527243,8.0,2592.7,2592.1,0.02]
[1748905527397,8.0,2592.7,2592.2,3.85763937]
[1748905527598,0.03863868,2592.6,2592.1,4.801]
[1748905527826,0.03863868,2592.6,2592.1,0.02]
[1748905528152,11.85706814,2592.7,2592.2,3.85771073]
[1748905528330,1.651376,2592.6,2592.2,3.85771073]
[1748905528938,0.03863868,2592.5,2592.1,0.02]
[1748905529136,0.03863868,2592.5,2592.4,3.8574294]
[1748905529337,1.651376,2592.6,2592.3,3.85749895]
[1748905529545,0.36160058,2592.5,2592.4,8.6273735]
[1748905530523,0.72313552,2592.5,2592.4,8.6273735]
[1748905531142,0.36160058,2592.5,2592.4,8.6273735]
[1748905531327,0.72311653,2592.5,2592.4,8.6273735]
[1748905531643,0.36160058,2592.5,2592.4,8.6273735]
[1748905532740,0.36160058,2592.5,2592.4,3.8573735]
[1748905533037,0.36160058,2592.5,2592.4,8.6113735]
[1748905533394,0.72311533,2592.5,2592.4,8.6113735]
[1748905533645,0.36160058,2592.5,2592.4,8.6113735]
[1748905533845,0.72309177,2592.5,2592.4,8.6113735]
[1748905534025,0.36160058,2592.5,2592.4,8.6113735]
[1748905534514,0.36160058,2592.5,2592.4,9.4104735]
[1748905534929,0.36160058,2592.5,2592.4,4.6564735]
[1748905535242,0.36160058,2592.5,2592.4,9.4084735]
[1748905535547,0.72310121,2592.5,2592.4,9.4084735]
[1748905536045,0.36160058,2592.5,2592.4,9.4034735]
[1748905536966,0.72274171,2592.5,2592.4,9.4034735]
[1748905537142,0.36160058,2592.5,2592.4,9.4034735]
[1748905538004,0.36160058,2592.5,2592.4,9.3924735]
[1748905539728,0.36160058,2592.5,2592.4,4.6564735]
[1748905539933,0.36160058,2592.5,2592.4,9.3804735]
[1748905540647,0.26414273,2592.5,2592.4,17.3804735]
[1748905541744,0.26414273,2592.5,2592.4,17.3734735]
[1748905542932,1.53837263,2593.9,2593.8,3.85534736]
[1748905543265,1.84390989,2593.9,2593.7,3.85543799]
[1748905543470,1.84390989,2593.9,2593.7,3.855496]
[1748905543651,0.72297263,2593.9,2593.8,3.85534736]
[1748905544824,0.72297263,2593.9,2593.8,4.65089816]
[1748905545028,0.72297263,2593.9,2593.8,6.31234736]
[1748905545587,0.72297263,2593.9,2593.8,4.61234736]
[1748905546084,0.68139931,2593.9,2593.8,12.6508895]
[1748905546365,0.02,2594.9,2594.8,3.85386156]
[1748905546569,0.02,2594.9,2594.8,8.54886156]
[1748905547127,0.02,2594.9,2594.8,9.30876156]
[1748905548228,0.02,2594.9,2594.8,4.61376156]
[1748905548455,0.02,2594.9,2594.8,3.85386156]
[1748905548854,0.782,2594.9,2594.8,3.85386156]
[1748905549066,1.01566387,2594.9,2594.8,3.85386156]
[1748905549278,0.25366387,2594.9,2594.8,3.85386156]
[1748905549506,0.02,2594.9,2594.8,3.85386156]
[1748905551242,0.02,2594.9,2594.1,0.7822]
[1748905551443,0.762,2594.8,2594.7,3.85401009]
[1748905551759,0.02,2594.9,2594.8,3.85386156]
[1748905551934,1.536,2594.9,2594.8,3.85386156]
[1748905552133,1.76966387,2594.9,2593.7,0.7822]
[1748905552333,0.03863868,2594.8,2594.0,4.673]
[1748905552641,1.76966387,2594.9,2594.6,3.85415863]
[1748905552642,0.762,2594.7,2594.6,3.85415863]
[1748905554158,0.27518984,2594.9,2594.8,3.85386156]
[1748905554361,1.75255116,2594.9,2594.8,3.85386156]
[1748905554669,2.00375628,2594.9,2594.8,3.85386156]
[1748905555472,2.00375628,2594.9,2594.5,3.85419023]
[1748905555634,0.7595,2594.7,2594.5,3.85419023]
[1748905555867,0.7595,2594.7,2594.6,3.85415863]
[1748905556270,0.97627001,2594.7,2594.6,3.85415863]
[1748905556469,0.7595,2594.7,2594.6,3.85415863]
[1748905556910,0.7595,2594.7,2594.5,3.85423054]
[1748905557417,0.7595,2594.7,2593.5,0.782]
[1748905557418,6.98775889,2594.6,2593.5,0.782]
[1748905557571,0.7615,2594.4,2593.5,3.8556617]
[1748905557776,0.7615,2594.1,2593.3,4.65]
[1748905558080,1.49963868,2594.0,2593.9,3.85519873]
[1748905558281,1.92162989,2594.5,2594.4,3.85445575]
[1748905558486,3.38262989,2594.5,2594.3,3.85452511]
[1748905558828,0.33826299,2594.4,2594.2,3.85472753]
[1748905558968,0.33826299,2594.4,2594.3,3.85460432]
[1748905559168,3.38262989,2594.5,2594.3,3.85453937]
[1748905559369,6.94912021,2594.4,2593.2,4.63812663]
[1748905559682,10.80358021,2594.4,2593.9,3.85513766]
[1748905559877,6.94912021,2594.4,2594.0,3.85504033]
[1748905560270,0.25545906,2594.3,2594.0,3.85504033]
[1748905560507,1.48279719,2594.3,2594.1,3.8547993]
[1748905560710,1.461,2594.2,2594.1,3.8547993]
[1748905561606,1.461,2594.2,2593.9,3.85508426]
[1748905561607,1.461,2594.2,2594.0,3.85497516]
[1748905561800,0.03863868,2594.1,2594.0,3.85497516]
[1748905562001,0.03863868,2594.1,2594.0,3.85505011]
[1748905562301,0.03863868,2594.1,2593.9,3.85515742]
[1748905562810,0.80173868,2594.1,2594.0,3.85505011]
[1748905563338,0.80173868,2594.1,2592.7,3.8568483]
[1748905563618,10.80433035,2593.9,2593.4,3.85581998]
[1748905563823,12.72345547,2593.8,2592.5,3.85727947]
[1748905564026,12.72345547,2593.8,2590.9,0.2]
[1748905564027,6.94912021,2593.1,2592.1,0.8351]
[1748905564192,1.49963868,2593.0,2592.8,3.85669012]
[1748905564399,1.49963868,2593.0,2592.9,3.85668556]
[1748905564698,2.2904,2593.4,2593.3,3.85609069]
[1748905564874,1.461,2593.4,2593.3,3.85609069]
[1748905565575,0.8294,2593.3,2593.1,4.627]
[1748905565777,1.05844,2593.3,2591.8,3.85825307]
[1748905566076,12.68599263,2593.0,2592.5,3.85718516]
[1748905566311,12.68599263,2593.0,2592.5,3.85718292]
[1748905566312,0.8294,2592.6,2592.5,3.85718292]
[1748905566690,2.2904,2592.6,2592.5,3.85718292]
[1748905566886,0.8294,2592.6,2592.5,3.85718292]
[1748905567112,1.461,2592.6,2592.5,3.85728061]
[1748905567876,1.461,2592.6,2592.2,3.85760922]
[1748905568212,0.03863868,2592.5,2592.1,0.02]
[1748905568412,0.8202,2592.4,2592.1,3.87779768]
[1748905568618,0.03863868,2592.3,2592.1,3.87779768]
[1748905568812,0.03863868,2592.3,2592.1,0.02]
[1748905569018,0.03863868,2592.3,2592.1,3.87785375]
[1748905569213,0.22685,2592.6,2592.1,3.87785375]
[1748905569214,1.462,2592.6,2592.5,3.85728061]
[1748905569584,1.50063868,2592.6,2592.5,3.85728061]
[1748905570180,1.50063868,2592.6,2592.1,0.02]
[1748905570181,0.8202,2592.5,2592.1,0.02]
[1748905570393,0.03863868,2592.4,2592.3,3.8575049]
[1748905570594,0.03863868,2592.4,2592.1,0.02]
[1748905570807,6.94912021,2592.2,2592.1,0.02]
[1748905571014,7.1661116,2592.2,2592.1,0.02]
[1748905571211,0.21699139,2592.2,2592.1,3.87787585]
[1748905571410,1.67899139,2592.2,2592.1,3.87787585]